[Event "Early-Titled-Tuesday-Blitz-January-16-2024"]
[Site "Chess.com"]
[Date "2024.01.16"]
[Round "1"]
[White "Andrey_Klymchuk"]
[Black "MusicCityMaster"]
[Result "1-0"]
[WhiteElo "2798"]
[BlackElo "2431"]
[TimeControl "180+1"]
[EndTime "8:08:00 PST"]
[Termination "Andrey_Klymchuk won by resignation"]

1. e4 {[%clk 0:03:00.9]} 1... e6 {[%clk 0:03:00.3]} 2. d4 {[%clk 0:03:00.3]}
2... d5 {[%clk 0:03:00.9]} 3. Nd2 {[%clk 0:03:00.6]} 3... Nc6 {[%clk 0:02:59.3]}
4. Ngf3 {[%clk 0:03:00.2]} 4... Nf6 {[%clk 0:02:59]} 5. e5 {[%clk 0:03:00.6]}
5... Nd7 {[%clk 0:02:59.8]} 6. Be2 {[%clk 0:03:00.9]} 6... f6 {[%clk 0:02:59.4]}
7. exf6 {[%clk 0:03:01.8]} 7... Qxf6 {[%clk 0:02:59.4]} 8. Nf1 {[%clk
0:03:02.6]} 8... Bd6 {[%clk 0:02:59.6]} 9. Ne3 {[%clk 0:03:03]} 9... O-O {[%clk
0:02:57.2]} 10. O-O {[%clk 0:03:03.1]} 10... Nb6 {[%clk 0:02:56.6]} 11. c4
{[%clk 0:03:00.9]} 11... dxc4 {[%clk 0:02:50.9]} 12. Nxc4 {[%clk 0:03:01]} 12...
Nxc4 {[%clk 0:02:51.3]} 13. Bxc4 {[%clk 0:03:00.8]} 13... Kh8 {[%clk 0:02:51.4]}
14. Bg5 {[%clk 0:02:54.7]} 14... Qg6 {[%clk 0:02:45.2]} 15. Bh4 {[%clk
0:02:35.5]} 15... e5 {[%clk 0:02:35.2]} 16. d5 {[%clk 0:02:19.3]} 16... Rf4
{[%clk 0:02:10.4]} 17. dxc6 {[%clk 0:01:34.4]} 17... Rxc4 {[%clk 0:02:09.5]} 18.
cxb7 {[%clk 0:01:34.6]} 18... Bxb7 {[%clk 0:02:09.3]} 19. Bg3 {[%clk 0:01:34.9]}
19... Rf8 {[%clk 0:01:57.1]} 20. Re1 {[%clk 0:01:23.7]} 20... Bxf3 {[%clk
0:01:07.6]} 21. gxf3 {[%clk 0:01:23.6]} 21... h5 {[%clk 0:00:56.8]} 22. b3
{[%clk 0:01:18.7]} 22... Rd4 {[%clk 0:00:53.6]} 23. Qb1 {[%clk 0:01:17]} 23...
Qxb1 {[%clk 0:00:44]} 24. Raxb1 {[%clk 0:01:16.6]} 24... Rf5 {[%clk 0:00:37.8]}
25. h4 {[%clk 0:00:57.1]} 25... Rd2 {[%clk 0:00:37.9]} 26. a4 {[%clk 0:00:52.1]}
26... Kh7 {[%clk 0:00:37.8]} 27. Rbc1 {[%clk 0:00:50.2]} 27... Kg6 {[%clk
0:00:34.7]} 28. Kg2 {[%clk 0:00:47.1]} 28... Rd3 {[%clk 0:00:34.4]} 29. Re3
{[%clk 0:00:47]} 29... Rd2 {[%clk 0:00:31.5]} 30. Rc6 {[%clk 0:00:46.4]} 30...
Kf7 {[%clk 0:00:30.6]} 31. Ra6 {[%clk 0:00:46.1]} 31... Rb2 {[%clk 0:00:29.1]}
32. Rxa7 {[%clk 0:00:44.7]} 32... Ke6 {[%clk 0:00:29.4]} 33. Ra6 {[%clk
0:00:42.4]} 33... Kd5 {[%clk 0:00:29.3]} 34. Rd3+ {[%clk 0:00:40.8]} 34... Ke6
{[%clk 0:00:28.8]} 35. a5 {[%clk 0:00:40.6]} 35... Ra2 {[%clk 0:00:26.5]} 36.
Ra8 {[%clk 0:00:40.5]} 36... e4 {[%clk 0:00:25.7]} 37. fxe4 {[%clk 0:00:31.2]}
37... Rfxa5 {[%clk 0:00:25.9]} 38. Rxa5 {[%clk 0:00:29.2]} 38... Rxa5 {[%clk
0:00:26.8]} 39. f4 {[%clk 0:00:28.4]} 39... Ra2+ {[%clk 0:00:26.3]} 40. Kf3
{[%clk 0:00:28.4]} 40... Rc2 {[%clk 0:00:26]} 41. f5+ {[%clk 0:00:27.8]} 41...
Ke7 {[%clk 0:00:25.4]} 42. e5 {[%clk 0:00:28.1]} 42... Bc5 {[%clk 0:00:24.7]}
43. Bf4 {[%clk 0:00:28.5]} 43... Rf2+ {[%clk 0:00:24.4]} 44. Ke4 {[%clk
0:00:28.4]} 44... Re2+ {[%clk 0:00:24.4]} 45. Kd5 {[%clk 0:00:28.7]} 45... Bb6
{[%clk 0:00:24.7]} 46. Bg5+ {[%clk 0:00:29]} 46... Ke8 {[%clk 0:00:24.4]} 47. e6
{[%clk 0:00:29.1]} 47... Rf2 {[%clk 0:00:23.1]} 48. Ke4 {[%clk 0:00:28.3]} 48...
Re2+ {[%clk 0:00:23.3]} 49. Kf4 {[%clk 0:00:28.7]} 49... Rf2+ {[%clk 0:00:22.2]}
50. Rf3 {[%clk 0:00:29.1]} 50... Rxf3+ {[%clk 0:00:21]} 51. Kxf3 {[%clk
0:00:29.3]} 51... Bc5 {[%clk 0:00:21.8]} 52. Ke4 {[%clk 0:00:29.4]} 52... Bd6
{[%clk 0:00:22.2]} 53. Bf4 {[%clk 0:00:28.9]} 53... Be7 {[%clk 0:00:20.9]} 54.
Bxc7 {[%clk 0:00:28.6]} 54... Bxh4 {[%clk 0:00:21.1]} 55. b4 {[%clk 0:00:29]}
55... Bf2 {[%clk 0:00:20.2]} 56. b5 {[%clk 0:00:29.2]} 56... h4 {[%clk
0:00:20.6]} 57. Kf3 {[%clk 0:00:29.4]} 57... Bc5 {[%clk 0:00:18.7]} 58. b6
{[%clk 0:00:29.6]} 58... Ke7 {[%clk 0:00:18.9]} 59. b7 {[%clk 0:00:29.7]} 59...
Ba7 {[%clk 0:00:19.2]} 60. Be5 {[%clk 0:00:29.5]} 60... g6 {[%clk 0:00:18.9]}
61. fxg6 {[%clk 0:00:29.4]} 61... Kxe6 {[%clk 0:00:19.2]} 62. g7 {[%clk
0:00:29.6]} 62... Kf7 {[%clk 0:00:19.5]} 63. Kg4 {[%clk 0:00:29.9]} 63... Kg8
{[%clk 0:00:14.8]} 64. Kxh4 {[%clk 0:00:29.8]} 64... Kf7 {[%clk 0:00:14.6]} 65.
Kg4 {[%clk 0:00:30.1]} 65... Kg8 {[%clk 0:00:15.2]} 66. Kf5 {[%clk 0:00:30.6]}
66... Kf7 {[%clk 0:00:15.9]} 67. Ke4 {[%clk 0:00:31]} 67... Kg8 {[%clk
0:00:16.1]} 68. Kd5 {[%clk 0:00:31.6]} 68... Kf7 {[%clk 0:00:16.7]} 69. Kc6
{[%clk 0:00:32]} 69... Kg8 {[%clk 0:00:17.3]} 70. Kc7 {[%clk 0:00:32.3]} 70...
Kf7 {[%clk 0:00:17.8]} 71. b8=Q {[%clk 0:00:32.8]} 1-0

[Event "Early-Titled-Tuesday-Blitz-January-16-2024"]
[Site "Chess.com"]
[Date "2024.01.16"]
[Round "1"]
[White "tigurones"]
[Black "Adar_07"]
[Result "1/2-1/2"]
[WhiteElo "2376"]
[BlackElo "2667"]
[TimeControl "180+1"]
[EndTime "8:08:02 PST"]
[Termination "Game drawn - insufficient material"]

1. d4 {[%clk 0:03:00.9]} 1... Nf6 {[%clk 0:02:55.9]} 2. Nf3 {[%clk 0:02:59]}
2... b6 {[%clk 0:02:54.5]} 3. c4 {[%clk 0:02:58.5]} 3... Bb7 {[%clk 0:02:54.2]}
4. Nc3 {[%clk 0:02:58.4]} 4... e6 {[%clk 0:02:54.9]} 5. g3 {[%clk 0:02:59]} 5...
Bb4 {[%clk 0:02:54.7]} 6. Bg2 {[%clk 0:02:59.3]} 6... c5 {[%clk 0:02:55.1]} 7.
dxc5 {[%clk 0:02:53.8]} 7... bxc5 {[%clk 0:02:52.3]} 8. Bd2 {[%clk 0:02:49.9]}
8... Nc6 {[%clk 0:02:52.9]} 9. O-O {[%clk 0:02:49.2]} 9... O-O {[%clk
0:02:52.3]} 10. Nb5 {[%clk 0:02:48.9]} 10... Bxd2 {[%clk 0:02:48.6]} 11. Qxd2
{[%clk 0:02:49.8]} 11... d5 {[%clk 0:02:48.9]} 12. cxd5 {[%clk 0:02:49.2]} 12...
exd5 {[%clk 0:02:49.4]} 13. Rac1 {[%clk 0:02:48.1]} 13... Ne4 {[%clk 0:02:48.3]}
14. Qe3 {[%clk 0:02:44.1]} 14... Re8 {[%clk 0:02:45.2]} 15. Qb3 {[%clk
0:02:34.7]} 15... Ba6 {[%clk 0:02:42.9]} 16. Rfd1 {[%clk 0:02:23.7]} 16... Qb6
{[%clk 0:02:39.7]} 17. a4 {[%clk 0:02:20]} 17... c4 {[%clk 0:02:33.8]} 18. Qe3
{[%clk 0:02:19.3]} 18... Qxe3 {[%clk 0:02:21.5]} 19. fxe3 {[%clk 0:02:20.2]}
19... Bxb5 {[%clk 0:02:21.2]} 20. axb5 {[%clk 0:02:17.6]} 20... Nb4 {[%clk
0:02:21.8]} 21. Nd2 {[%clk 0:02:02.8]} 21... Nxd2 {[%clk 0:02:13.9]} 22. Rxd2
{[%clk 0:02:01.8]} 22... Rad8 {[%clk 0:02:13.1]} 23. e4 {[%clk 0:02:00.7]} 23...
Na2 {[%clk 0:01:46]} 24. Ra1 {[%clk 0:01:54.6]} 24... c3 {[%clk 0:01:45.7]} 25.
bxc3 {[%clk 0:01:48.3]} 25... Nxc3 {[%clk 0:01:46.6]} 26. exd5 {[%clk
0:01:43.8]} 26... Nxe2+ {[%clk 0:01:41.6]} 27. Kf2 {[%clk 0:01:43.3]} 27... Nc3
{[%clk 0:01:42.5]} 28. Rxa7 {[%clk 0:01:37]} 28... Nxb5 {[%clk 0:01:42.5]} 29.
Rb7 {[%clk 0:01:30.4]} 29... Nd6 {[%clk 0:01:42.3]} 30. Rb4 {[%clk 0:01:30.9]}
30... g6 {[%clk 0:01:40.6]} 31. Re2 {[%clk 0:01:26.9]} 31... Kg7 {[%clk
0:01:31.9]} 32. Rxe8 {[%clk 0:01:25.9]} 32... Nxe8 {[%clk 0:01:30.9]} 33. Ke3
{[%clk 0:01:21]} 33... Nf6 {[%clk 0:01:30.8]} 34. Kd4 {[%clk 0:01:20.9]} 34...
h5 {[%clk 0:01:25.8]} 35. Kc5 {[%clk 0:01:14.6]} 35... Rc8+ {[%clk 0:01:18.7]}
36. Kb6 {[%clk 0:01:08.1]} 36... Rc2 {[%clk 0:01:19.6]} 37. Bf3 {[%clk
0:01:01.3]} 37... Rxh2 {[%clk 0:01:19.4]} 38. d6 {[%clk 0:01:00.3]} 38... Rh3
{[%clk 0:01:18.8]} 39. Bc6 {[%clk 0:00:50]} 39... Rxg3 {[%clk 0:01:16.8]} 40.
Rd4 {[%clk 0:00:49.2]} 40... g5 {[%clk 0:01:07.4]} 41. d7 {[%clk 0:00:43]} 41...
Nxd7+ {[%clk 0:01:07.5]} 42. Rxd7 {[%clk 0:00:43.9]} 42... Kg6 {[%clk
0:00:57.2]} 43. Bd5 {[%clk 0:00:32.5]} 43... f6 {[%clk 0:00:54.9]} 44. Be4+
{[%clk 0:00:32.3]} 44... f5 {[%clk 0:00:52.8]} 45. Rd6+ {[%clk 0:00:32.2]} 45...
Kf7 {[%clk 0:00:53.6]} 46. Bxf5 {[%clk 0:00:32.8]} 46... g4 {[%clk 0:00:52.9]}
47. Rh6 {[%clk 0:00:26.4]} 47... Rh3 {[%clk 0:00:50.1]} 48. Kc5 {[%clk 0:00:20]}
48... Kg7 {[%clk 0:00:50.2]} 49. Rg6+ {[%clk 0:00:19.8]} 49... Kf7 {[%clk
0:00:50.6]} 50. Kd5 {[%clk 0:00:17.7]} 50... Rf3 {[%clk 0:00:42.4]} 51. Ke4
{[%clk 0:00:17.2]} 51... Ra3 {[%clk 0:00:42.4]} 52. Rh6 {[%clk 0:00:16.9]} 52...
Ra4+ {[%clk 0:00:38]} 53. Ke5 {[%clk 0:00:17.1]} 53... Ra5+ {[%clk 0:00:32.4]}
54. Ke4 {[%clk 0:00:17.4]} 54... Ra4+ {[%clk 0:00:32.6]} 55. Ke5 {[%clk
0:00:17.8]} 55... Ra5+ {[%clk 0:00:27.1]} 56. Kf4 {[%clk 0:00:17.9]} 56... Ra4+
{[%clk 0:00:26.9]} 57. Be4 {[%clk 0:00:18]} 57... Ra5 {[%clk 0:00:24.9]} 58.
Rh7+ {[%clk 0:00:16.8]} 58... Kf6 {[%clk 0:00:24.9]} 59. Rh6+ {[%clk 0:00:17.1]}
59... Kg7 {[%clk 0:00:25.2]} 60. Rg6+ {[%clk 0:00:17.6]} 60... Kf7 {[%clk
0:00:25.8]} 61. Rg5 {[%clk 0:00:18]} 61... Rxg5 {[%clk 0:00:23.6]} 62. Kxg5
{[%clk 0:00:18.9]} 62... g3 {[%clk 0:00:23.7]} 63. Kxh5 {[%clk 0:00:19.4]} 63...
g2 {[%clk 0:00:24.6]} 64. Bxg2 {[%clk 0:00:19.6]} 1/2-1/2

[Event "Early-Titled-Tuesday-Blitz-January-16-2024"]
[Site "Chess.com"]
[Date "2024.01.16"]
[Round "1"]
[White "NastyaHn"]
[Black "lefonghua"]
[Result "0-1"]
[WhiteElo "2300"]
[BlackElo "2644"]
[TimeControl "180+1"]
[EndTime "8:08:02 PST"]
[Termination "lefonghua won on time"]

1. Nc3 {[%clk 0:03:00.3]} 1... c5 {[%clk 0:02:59.8]} 2. e4 {[%clk 0:02:59.6]}
2... g6 {[%clk 0:03:00.4]} 3. d4 {[%clk 0:02:56.9]} 3... cxd4 {[%clk 0:03:01.3]}
4. Qxd4 {[%clk 0:02:56.6]} 4... Nf6 {[%clk 0:03:01.2]} 5. e5 {[%clk 0:02:56.2]}
5... Nc6 {[%clk 0:03:00.3]} 6. Qf4 {[%clk 0:02:44.9]} 6... Nh5 {[%clk
0:02:54.9]} 7. Qe4 {[%clk 0:02:44.8]} 7... Bg7 {[%clk 0:02:50.3]} 8. g4 {[%clk
0:02:28.8]} 8... d5 {[%clk 0:02:47.8]} 9. Qxd5 {[%clk 0:02:06.9]} 9... Bxg4
{[%clk 0:02:44.2]} 10. Bb5 {[%clk 0:01:57.5]} 10... O-O {[%clk 0:02:35.5]} 11.
Qxd8 {[%clk 0:01:33.8]} 11... Rfxd8 {[%clk 0:02:26.7]} 12. f4 {[%clk 0:01:33.8]}
12... Nb4 {[%clk 0:01:56.4]} 13. Ba4 {[%clk 0:01:31.2]} 13... Bf5 {[%clk
0:01:56.6]} 14. Be3 {[%clk 0:01:26.2]} 14... Nxc2+ {[%clk 0:01:47.3]} 15. Bxc2
{[%clk 0:01:25.7]} 15... Bxc2 {[%clk 0:01:48.2]} 16. Nge2 {[%clk 0:01:25.2]}
16... Bf5 {[%clk 0:01:36.7]} 17. Kf2 {[%clk 0:01:20.9]} 17... Kf8 {[%clk
0:01:31.3]} 18. Ng3 {[%clk 0:01:13.8]} 18... Nxg3 {[%clk 0:01:26.6]} 19. hxg3
{[%clk 0:01:14]} 19... h5 {[%clk 0:01:27.2]} 20. Nb5 {[%clk 0:01:07.7]} 20... a6
{[%clk 0:01:23.8]} 21. Nd4 {[%clk 0:01:05.1]} 21... Be4 {[%clk 0:01:23.7]} 22.
Rhc1 {[%clk 0:01:02.9]} 22... Rac8 {[%clk 0:01:21.1]} 23. Nb3 {[%clk 0:00:54.8]}
23... Bd5 {[%clk 0:01:04.5]} 24. Nc5 {[%clk 0:00:47.4]} 24... Ke8 {[%clk
0:00:59.1]} 25. Rc3 {[%clk 0:00:22.5]} 25... f6 {[%clk 0:00:46.6]} 26. Bd4
{[%clk 0:00:19]} 26... fxe5 {[%clk 0:00:43.3]} 27. Bxe5 {[%clk 0:00:16.3]} 27...
Bxe5 {[%clk 0:00:42.8]} 28. fxe5 {[%clk 0:00:16.6]} 28... e6 {[%clk 0:00:43.4]}
29. Rac1 {[%clk 0:00:15.3]} 29... Ke7 {[%clk 0:00:43.5]} 30. b3 {[%clk
0:00:13.9]} 30... Rf8+ {[%clk 0:00:42]} 31. Ke2 {[%clk 0:00:13.4]} 31... Rf5
{[%clk 0:00:38.4]} 32. Nd3 {[%clk 0:00:12.8]} 32... Rxc3 {[%clk 0:00:37.5]} 33.
Rxc3 {[%clk 0:00:12.9]} 33... Kd8 {[%clk 0:00:34]} 34. Rc1 {[%clk 0:00:12.2]}
34... Be4 {[%clk 0:00:32.4]} 35. Rc5 {[%clk 0:00:11.7]} 35... Bd5 {[%clk
0:00:30]} 36. Rc1 {[%clk 0:00:08.5]} 36... g5 {[%clk 0:00:28.2]} 37. Rg1 {[%clk
0:00:07.1]} 37... Ke7 {[%clk 0:00:25.4]} 38. Rc1 {[%clk 0:00:06.4]} 38... Kd8
{[%clk 0:00:20.5]} 39. Kd2 {[%clk 0:00:04.6]} 39... h4 {[%clk 0:00:19.6]} 40.
gxh4 {[%clk 0:00:04.1]} 40... gxh4 {[%clk 0:00:20.5]} 41. Rg1 {[%clk 0:00:04.2]}
41... h3 {[%clk 0:00:20]} 42. Rg3 {[%clk 0:00:02.7]} 42... Rh5 {[%clk
0:00:18.4]} 43. Rg8+ {[%clk 0:00:02.6]} 43... Kc7 {[%clk 0:00:17.4]} 44. Rg7+
{[%clk 0:00:02.9]} 44... Kb8 {[%clk 0:00:17.4]} 45. Rg8+ {[%clk 0:00:02.9]}
45... Ka7 {[%clk 0:00:17.9]} 46. Nf2 {[%clk 0:00:02.4]} 46... h2 {[%clk
0:00:17.8]} 47. Kc3 {[%clk 0:00:02.4]} 47... h1=Q {[%clk 0:00:18.1]} 48. Nxh1
{[%clk 0:00:02.7]} 48... Rxh1 {[%clk 0:00:18.9]} 49. Kd4 {[%clk 0:00:02.6]}
49... Rh4+ {[%clk 0:00:19.1]} 50. Kc5 {[%clk 0:00:02.6]} 50... Rh2 {[%clk
0:00:19.5]} 51. a4 {[%clk 0:00:01.2]} 51... Bxb3 {[%clk 0:00:19.2]} 52. Kd6
{[%clk 0:00:01.7]} 52... Bd5 {[%clk 0:00:19]} 53. Ke7 {[%clk 0:00:01.8]} 53...
Ra2 {[%clk 0:00:18.6]} 54. Kd6 {[%clk 0:00:02.1]} 54... Rxa4 {[%clk 0:00:18.8]}
55. Rd8 {[%clk 0:00:01.7]} 55... Rc4 {[%clk 0:00:19]} 56. Rg8 {[%clk 0:00:01.4]}
56... Kb6 {[%clk 0:00:19.3]} 57. Rg7 {[%clk 0:00:01.3]} 57... a5 {[%clk
0:00:19.2]} 0-1

[Event "Early-Titled-Tuesday-Blitz-January-16-2024"]
[Site "Chess.com"]
[Date "2024.01.16"]
[Round "1"]
[White "hakanazeri2"]
[Black "shimastream"]
[Result "1/2-1/2"]
[WhiteElo "2530"]
[BlackElo "3006"]
[TimeControl "180+1"]
[EndTime "8:08:07 PST"]
[Termination "Game drawn by repetition"]

1. Nf3 {[%clk 0:03:00.9]} 1... d5 {[%clk 0:02:53.8]} 2. d4 {[%clk 0:03:01]} 2...
c6 {[%clk 0:02:52.1]} 3. c4 {[%clk 0:03:01.1]} 3... Nf6 {[%clk 0:02:47]} 4. Nc3
{[%clk 0:03:00.7]} 4... dxc4 {[%clk 0:02:42]} 5. a4 {[%clk 0:03:00.6]} 5... Bf5
{[%clk 0:02:41.3]} 6. Ne5 {[%clk 0:02:59.9]} 6... Nbd7 {[%clk 0:02:40.4]} 7.
Nxc4 {[%clk 0:02:59.7]} 7... Nb6 {[%clk 0:02:39.6]} 8. Ne5 {[%clk 0:02:53.5]}
8... a5 {[%clk 0:02:39]} 9. f3 {[%clk 0:02:53.1]} 9... Nfd7 {[%clk 0:02:35.3]}
10. Nxd7 {[%clk 0:02:49.2]} 10... Nxd7 {[%clk 0:02:28.7]} 11. e4 {[%clk
0:02:48.4]} 11... Bg6 {[%clk 0:02:28.2]} 12. Be3 {[%clk 0:02:46]} 12... Qb6
{[%clk 0:02:22.9]} 13. Qd2 {[%clk 0:02:43.6]} 13... e5 {[%clk 0:02:21.9]} 14.
Rd1 {[%clk 0:02:15.5]} 14... Qc7 {[%clk 0:02:01.3]} 15. d5 {[%clk 0:02:02.8]}
15... Bb4 {[%clk 0:01:59.8]} 16. h4 {[%clk 0:01:48.8]} 16... h5 {[%clk
0:01:58.8]} 17. d6 {[%clk 0:01:48]} 17... Qd8 {[%clk 0:01:57.9]} 18. Bc4 {[%clk
0:01:47.8]} 18... O-O {[%clk 0:01:23.8]} 19. O-O {[%clk 0:01:38.6]} 19... Qxh4
{[%clk 0:01:19.8]} 20. Qc1 {[%clk 0:01:26.8]} 20... Bc5 {[%clk 0:01:05.5]} 21.
Ne2 {[%clk 0:01:13.7]} 21... Bxe3+ {[%clk 0:01:02.7]} 22. Qxe3 {[%clk
0:01:14.6]} 22... Qd8 {[%clk 0:01:01.9]} 23. Kh2 {[%clk 0:01:07.5]} 23... Kh7
{[%clk 0:00:43.6]} 24. Bb3 {[%clk 0:00:41.6]} 24... Qb6 {[%clk 0:00:40.6]} 25.
Qxb6 {[%clk 0:00:29.6]} 25... Nxb6 {[%clk 0:00:40.5]} 26. f4 {[%clk 0:00:30.3]}
26... exf4 {[%clk 0:00:35.8]} 27. Nxf4 {[%clk 0:00:22.8]} 27... Bxe4 {[%clk
0:00:33.5]} 28. Nxh5 {[%clk 0:00:23]} 28... Bd5 {[%clk 0:00:26.1]} 29. Bc2+
{[%clk 0:00:22.9]} 29... Kg8 {[%clk 0:00:25.7]} 30. Rf4 {[%clk 0:00:20.9]} 30...
Rfd8 {[%clk 0:00:21.9]} 31. Rg4 {[%clk 0:00:13.8]} 31... g6 {[%clk 0:00:17.1]}
32. Nf6+ {[%clk 0:00:12.3]} 32... Kg7 {[%clk 0:00:17.2]} 33. Ne4 {[%clk
0:00:09.9]} 33... Nc4 {[%clk 0:00:14.5]} 34. Rf4 {[%clk 0:00:05.7]} 34... Ne3
{[%clk 0:00:10.7]} 35. Rd2 {[%clk 0:00:04.4]} 35... Nxc2 {[%clk 0:00:07.4]} 36.
Rxc2 {[%clk 0:00:05.3]} 36... Bxe4 {[%clk 0:00:07.9]} 37. Rxe4 {[%clk
0:00:06.2]} 37... Rxd6 {[%clk 0:00:08.4]} 38. Re7 {[%clk 0:00:06.9]} 38... Rb8
{[%clk 0:00:06.5]} 39. Rf2 {[%clk 0:00:06.7]} 39... Rf6 {[%clk 0:00:06.8]} 40.
Rd2 {[%clk 0:00:07.3]} 40... b5 {[%clk 0:00:06.2]} 41. axb5 {[%clk 0:00:06.1]}
41... cxb5 {[%clk 0:00:07.1]} 42. Rdd7 {[%clk 0:00:05.9]} 42... a4 {[%clk
0:00:06.2]} 43. Ra7 {[%clk 0:00:06.4]} 43... Rc8 {[%clk 0:00:05.9]} 44. Reb7
{[%clk 0:00:05.3]} 44... Rc5 {[%clk 0:00:05.9]} 45. Kg3 {[%clk 0:00:02.8]} 45...
Rg5+ {[%clk 0:00:05.2]} 46. Kh2 {[%clk 0:00:03.1]} 46... Rf2 {[%clk 0:00:05.3]}
47. Kh3 {[%clk 0:00:03]} 47... Rfxg2 {[%clk 0:00:04.7]} 48. Rxf7+ {[%clk
0:00:03]} 48... Kg8 {[%clk 0:00:01.9]} 49. Rg7+ {[%clk 0:00:03.5]} 49... Kf8
{[%clk 0:00:02.2]} 50. Rgf7+ {[%clk 0:00:04]} 50... Ke8 {[%clk 0:00:02.3]} 51.
Rfe7+ {[%clk 0:00:04.4]} 51... Kf8 {[%clk 0:00:02.7]} 52. Rf7+ {[%clk
0:00:04.9]} 52... Kg8 {[%clk 0:00:03]} 53. Rg7+ {[%clk 0:00:05.4]} 53... Kf8
{[%clk 0:00:03.3]} 54. Rgf7+ {[%clk 0:00:05.8]} 1/2-1/2

[Event "Early-Titled-Tuesday-Blitz-January-16-2024"]
[Site "Chess.com"]
[Date "2024.01.16"]
[Round "1"]
[White "Legendinunknown"]
[Black "BelyakovBogdan"]
[Result "1-0"]
[WhiteElo "2790"]
[BlackElo "2423"]
[TimeControl "180+1"]
[EndTime "8:08:09 PST"]
[Termination "Legendinunknown won by resignation"]

1. d4 {[%clk 0:03:00.9]} 1... Nf6 {[%clk 0:02:59.7]} 2. Nf3 {[%clk 0:03:01.2]}
2... g6 {[%clk 0:02:59.6]} 3. Bg5 {[%clk 0:03:00.9]} 3... Bg7 {[%clk 0:02:59.6]}
4. Nbd2 {[%clk 0:03:01.2]} 4... h6 {[%clk 0:02:57.1]} 5. Bxf6 {[%clk 0:03:00.8]}
5... Bxf6 {[%clk 0:02:58]} 6. e4 {[%clk 0:03:01.7]} 6... d6 {[%clk 0:02:57.9]}
7. Bd3 {[%clk 0:03:00.7]} 7... Nd7 {[%clk 0:02:48]} 8. c3 {[%clk 0:02:59.4]}
8... b6 {[%clk 0:02:47.4]} 9. Qe2 {[%clk 0:02:59.6]} 9... Bb7 {[%clk 0:02:47.6]}
10. e5 {[%clk 0:02:55.6]} 10... dxe5 {[%clk 0:02:46.7]} 11. dxe5 {[%clk
0:02:55.7]} 11... Bg7 {[%clk 0:02:39.2]} 12. e6 {[%clk 0:02:52.7]} 12... Nc5
{[%clk 0:02:33.6]} 13. exf7+ {[%clk 0:02:52.9]} 13... Kxf7 {[%clk 0:02:33.5]}
14. Bc4+ {[%clk 0:02:53]} 14... Bd5 {[%clk 0:02:33]} 15. O-O-O {[%clk
0:02:52.3]} 15... Bxc4 {[%clk 0:02:26.9]} 16. Qxc4+ {[%clk 0:02:53.2]} 16... e6
{[%clk 0:02:22]} 17. Ne4 {[%clk 0:02:53.1]} 17... Qe7 {[%clk 0:02:21.8]} 18.
Nxc5 {[%clk 0:02:52]} 18... bxc5 {[%clk 0:02:18.4]} 19. Qf4+ {[%clk 0:02:51.8]}
19... Bf6 {[%clk 0:02:15.9]} 20. Kb1 {[%clk 0:02:45.3]} 20... Kg7 {[%clk
0:02:10.8]} 21. Rhe1 {[%clk 0:02:43.9]} 21... Rad8 {[%clk 0:02:09.6]} 22. a4
{[%clk 0:02:39.6]} 22... Rd6 {[%clk 0:02:08.4]} 23. Rd2 {[%clk 0:02:34.6]} 23...
Rb8 {[%clk 0:02:06.9]} 24. Qc4 {[%clk 0:02:30.3]} 24... Qd7 {[%clk 0:01:52]} 25.
Red1 {[%clk 0:02:18.1]} 25... h5 {[%clk 0:01:35.8]} 26. Qxc5 {[%clk 0:02:09.6]}
26... Rd8 {[%clk 0:01:20.6]} 27. Nd4 {[%clk 0:01:53.4]} 27... Kg8 {[%clk
0:01:04.8]} 28. Qc4 {[%clk 0:01:50.7]} 28... Kh8 {[%clk 0:00:55.7]} 29. Kc2
{[%clk 0:01:49.1]} 29... c5 {[%clk 0:00:54.5]} 30. Nb3 {[%clk 0:01:43.8]} 30...
Qc6 {[%clk 0:00:52.4]} 31. f3 {[%clk 0:01:37.6]} 31... Rxd2+ {[%clk 0:00:46.7]}
32. Rxd2 {[%clk 0:01:38.5]} 32... Rxd2+ {[%clk 0:00:46.7]} 33. Nxd2 {[%clk
0:01:39.4]} 33... Qd6 {[%clk 0:00:45.4]} 34. h3 {[%clk 0:01:33.6]} 34... Qg3
{[%clk 0:00:44.1]} 35. Qxe6 {[%clk 0:01:33.1]} 35... Bg7 {[%clk 0:00:43.2]} 36.
Qe2 {[%clk 0:01:32.4]} 36... Qf4 {[%clk 0:00:39.8]} 37. Ne4 {[%clk 0:01:32.5]}
37... Qf5 {[%clk 0:00:36.2]} 38. Qc4 {[%clk 0:01:30.3]} 38... Qe5 {[%clk
0:00:32.6]} 39. Qxc5 {[%clk 0:01:29.6]} 39... Qh2 {[%clk 0:00:32.5]} 40. Qf2
{[%clk 0:01:29.5]} 40... Qc7 {[%clk 0:00:32.1]} 41. Qd2 {[%clk 0:01:27.3]} 41...
Qc6 {[%clk 0:00:31]} 42. b3 {[%clk 0:01:25.2]} 42... Qc7 {[%clk 0:00:29.5]} 43.
Qd6 {[%clk 0:01:20.7]} 43... Qf7 {[%clk 0:00:24]} 44. Qb8+ {[%clk 0:01:20.7]}
44... Bf8 {[%clk 0:00:23.9]} 45. Qc8 {[%clk 0:01:17.8]} 45... Qe7 {[%clk
0:00:21.1]} 46. b4 {[%clk 0:01:08.8]} 46... Qf7 {[%clk 0:00:20.4]} 47. Kd3
{[%clk 0:01:06]} 47... Qd5+ {[%clk 0:00:19]} 48. Ke3 {[%clk 0:01:05.9]} 48...
Kg7 {[%clk 0:00:18]} 49. Qc7+ {[%clk 0:01:06.2]} 49... Kh8 {[%clk 0:00:17.6]}
50. Qxa7 {[%clk 0:01:06]} 50... Qf5 {[%clk 0:00:15.6]} 51. Qd4+ {[%clk
0:01:05.2]} 51... Bg7 {[%clk 0:00:15.2]} 52. Qd8+ {[%clk 0:01:05.4]} 52... Kh7
{[%clk 0:00:12.6]} 53. h4 {[%clk 0:00:59.9]} 53... Qe5 {[%clk 0:00:11.3]} 54.
Qd7 {[%clk 0:00:57.7]} 54... Qh2 {[%clk 0:00:10.1]} 55. Ng5+ {[%clk 0:00:56.6]}
55... Kh6 {[%clk 0:00:09.9]} 56. Nf7+ {[%clk 0:00:54.4]} 56... Kh7 {[%clk
0:00:09.8]} 57. Ng5+ {[%clk 0:00:50.1]} 57... Kh6 {[%clk 0:00:09.7]} 58. Ne6
{[%clk 0:00:50.7]} 58... Qe5+ {[%clk 0:00:07.7]} 59. Kf2 {[%clk 0:00:49.7]}
59... Bf6 {[%clk 0:00:07.7]} 60. Qd2+ {[%clk 0:00:47.8]} 60... Kh7 {[%clk
0:00:07.5]} 61. Ng5+ {[%clk 0:00:48.4]} 61... Bxg5 {[%clk 0:00:07]} 62. hxg5
{[%clk 0:00:48]} 62... Qd6 {[%clk 0:00:06.6]} 63. Qxd6 {[%clk 0:00:48]} 1-0